bitfinex-derivatives/quotes_BTCF0:USTF0_20260214
["timestamp","ask_amount","ask_price","bid_price","bid_amount"]
[1771080279365,0.014355,69683.0,69677.0,0.0144]
[1771080281165,0.014355,69683.0,69671.0,0.014358]
[1771080281166,0.014356,69681.0,69670.0,0.014358]
[1771080281370,0.014356,69681.0,69671.0,0.028758]
[1771080281761,0.028712,69681.0,69674.0,0.014357]
[1771080281963,0.014356,69680.0,69675.0,0.014357]
[1771080282165,0.014356,69680.0,69675.0,0.028757]
[1771080283073,0.014356,69680.0,69675.0,0.0144]
[1771080283672,0.028712,69680.0,69675.0,0.0144]
[1771080283871,0.014356,69680.0,69675.0,0.0144]
[1771080284072,0.0144,69683.0,69678.0,0.014356]
[1771080284373,0.0144,69683.0,69679.0,0.014356]
[1771080285774,0.0144,69685.0,69680.0,0.014356]
[1771080286166,0.0144,69685.0,69679.0,0.014356]
[1771080286371,0.0144,69685.0,69680.0,0.014356]
[1771080288877,0.0144,69685.0,69679.0,0.014356]
[1771080289878,0.014355,69686.0,69679.0,0.014356]
[1771080290077,0.0144,69685.0,69679.0,0.014356]
[1771080291077,0.028755,69685.0,69679.0,0.014356]
[1771080292470,0.014354,69689.0,69678.0,0.014356]
[1771080292471,0.0144,69689.0,69678.0,0.24989054]
[1771080292675,0.028754,69689.0,69682.0,0.014355]
[1771080292875,0.0144,69689.0,69683.0,0.014355]
[1771080293776,0.028754,69689.0,69683.0,0.014355]
[1771080293976,0.028754,69689.0,69682.0,0.014355]
[1771080294377,0.0144,69689.0,69683.0,0.014355]
[1771080294580,0.0144,69689.0,69684.0,0.014355]
[1771080294775,0.0144,69689.0,69683.0,0.014355]
[1771080296285,0.23268004,69739.0,69701.0,0.717593]
[1771080296575,0.23268004,69735.0,69714.0,0.23553454]
[1771080296780,0.24702704,69726.0,69715.0,0.172389]
[1771080296979,0.028787,69725.0,69716.0,0.01444]
[1771080297182,0.014347,69724.0,69716.0,0.01444]
[1771080297383,0.028787,69725.0,69716.0,0.01444]
[1771080297581,0.014347,69724.0,69716.0,0.01444]
[1771080299075,0.014347,69724.0,69715.0,0.1436]
[1771080299283,0.1436,69729.0,69715.0,0.1436]
[1771080299284,0.014345,69731.0,69718.0,0.014348]
[1771080299586,0.15804,69730.0,69718.0,0.014348]
[1771080299783,0.172386,69730.0,69718.0,0.014348]
[1771080299978,0.172386,69730.0,69719.0,0.014348]
[1771080300184,0.014346,69728.0,69718.0,0.014348]
[1771080300386,0.028786,69727.0,69717.0,0.01444]
[1771080300583,0.014346,69726.0,69717.0,0.01444]
[1771080300781,0.014347,69724.0,69717.0,0.01444]
[1771080300982,0.014347,69724.0,69713.0,0.014349]
[1771080301190,0.014348,69719.0,69714.0,0.0144]
[1771080301382,0.24013217,69723.0,69713.0,0.028749]
[1771080301581,0.25447917,69723.0,69713.0,0.0144]
[1771080301789,0.25447917,69723.0,69713.0,0.028749]
[1771080301981,0.0144,69722.0,69713.0,0.028749]
[1771080302890,0.0144,69722.0,69714.0,0.014349]
[1771080303088,0.0144,69722.0,69713.0,0.0144]
[1771080303888,0.028747,69722.0,69713.0,0.0144]
[1771080307795,0.014347,69721.0,69713.0,0.0144]
[1771080308094,0.014347,69721.0,69711.0,0.014349]
[1771080308295,0.028747,69722.0,69712.0,0.0144]
[1771080308588,0.028747,69722.0,69706.0,0.01435]
[1771080308589,0.25448117,69712.0,69693.0,0.2287667]
[1771080308796,0.0144,69711.0,69699.0,0.014352]
[1771080309095,0.02875,69711.0,69699.0,0.014352]
[1771080309495,0.0287,69711.0,69699.0,0.014352]
[1771080309794,0.0287,69711.0,69700.0,0.0144]
[1771080309994,0.01435,69710.0,69700.0,0.0144]
[1771080310889,0.25448317,69702.0,69690.0,0.014354]
[1771080311084,0.0144,69701.0,69691.0,0.028754]
[1771080311291,0.028752,69701.0,69690.0,0.014354]
[1771080311493,0.26888417,69701.0,69690.0,0.014354]
[1771080311793,0.24013217,69699.0,69689.0,0.014354]
[1771080312098,0.0144,69698.0,69690.0,0.014354]
[1771080313396,0.0144,69698.0,69681.0,0.0144]
[1771080313397,0.014354,69690.0,69681.0,0.0144]
[1771080313588,0.0144,69689.0,69682.0,0.014355]
[1771080313792,0.0144,69689.0,69683.0,0.014355]
[1771080313989,0.0144,69689.0,69682.0,0.014355]
[1771080314196,0.0144,69689.0,69683.0,0.014355]
[1771080316104,0.0144,69689.0,69679.0,0.014356]
[1771080316309,0.0144,69689.0,69675.0,0.014357]
[1771080316506,0.014355,69683.0,69671.0,0.157918]
[1771080316707,0.0144,69682.0,69673.0,0.028757]
[1771080316904,0.028755,69682.0,69672.0,0.028757]
[1771080317104,0.014356,69681.0,69672.0,0.014357]
[1771080317804,0.014356,69681.0,69671.0,0.0144]
[1771080317805,0.014356,69680.0,69671.0,0.014358]
[1771080318306,0.0144,69682.0,69672.0,0.014357]
[1771080318611,0.0144,69682.0,69671.0,0.014358]
[1771080318809,0.0144,69682.0,69673.0,0.014357]
[1771080319007,0.00017769,69681.0,69673.0,0.014357]
[1771080319315,0.00017769,69681.0,69668.0,0.0144]
[1771080319316,0.014357,69677.0,69668.0,0.0144]
[1771080319505,0.014357,69677.0,69663.0,0.14356]
[1771080319506,0.014357,69676.0,69667.0,0.014359]
[1771080319809,0.014357,69676.0,69665.0,0.014359]
[1771080320111,0.014357,69676.0,69666.0,0.014359]
[1771080320910,0.38369217,69676.0,69662.0,0.02876]
[1771080321110,0.38369217,69676.0,69667.0,0.014358]
[1771080321303,0.38369217,69676.0,69666.0,0.014359]
[1771080321503,0.38369217,69676.0,69667.0,0.014359]
[1771080321705,0.14356,69676.0,69668.0,0.014358]
[1771080321905,0.01440069,69681.0,69669.0,0.2287667]
[1771080322108,0.14356,69701.0,69694.0,0.014353]
[1771080322311,0.01444,69700.0,69694.0,0.014353]
[1771080323112,0.014351,69705.0,69694.0,0.014353]
[1771080323314,0.15804,69704.0,69694.0,0.014353]
[1771080323713,0.172391,69704.0,69694.0,0.014353]
[1771080323908,0.172391,69704.0,69695.0,0.014353]
[1771080323909,0.15804,69704.0,69695.0,0.014353]
[1771080324609,0.15804,69704.0,69695.0,0.014303]
[1771080324809,0.24013217,69710.0,69691.0,0.2287667]
[1771080325111,0.15804,69709.0,69700.0,0.014352]
[1771080325410,0.15804,69709.0,69701.0,0.014352]
[1771080325809,0.01444,69708.0,69701.0,0.014352]
[1771080326009,0.01444,69707.0,69701.0,0.014352]
[1771080328111,0.01444,69707.0,69700.0,0.014352]
[1771080328812,0.01444,69707.0,69699.0,0.014352]
[1771080329008,0.01444,69706.0,69704.0,0.014351]
[1771080329213,5.166e-05,69705.0,69704.0,0.014351]
[1771080329510,0.14356,69712.0,69705.0,0.014351]
[1771080329819,0.01444,69711.0,69701.0,0.014351]
[1771080330112,0.01444,69711.0,69702.0,0.014351]
[1771080330319,0.01444,69711.0,69703.0,0.014351]
[1771080331118,0.01444,69711.0,69702.0,0.014351]
[1771080331417,0.01444,69711.0,69701.0,0.014351]
[1771080332915,0.01406003,69711.0,69701.0,0.014351]
[1771080335520,0.01132746,69711.0,69701.0,0.014351]
[1771080335716,0.01132746,69711.0,69702.0,0.014351]
[1771080336720,0.01132746,69711.0,69703.0,0.014351]
[1771080337020,0.01444,69710.0,69707.0,0.01435]
[1771080337223,0.24306908,69719.0,69707.0,0.01435]
[1771080337423,0.14356,69713.0,69707.0,0.01435]
[1771080337620,0.01444,69712.0,69708.0,0.01435]
[1771080337925,0.01444,69712.0,69707.0,0.01435]
[1771080339322,0.01444,69712.0,69706.0,0.01435]
[1771080339524,0.01444,69712.0,69707.0,0.01435]
[1771080339726,0.01438,69712.0,69706.0,0.0287]
[1771080340128,0.01438,69712.0,69707.0,0.01435]
[1771080340421,0.01444,69711.0,69709.0,0.01435]
[1771080340723,0.01444,69710.0,69709.0,0.01435]
[1771080341427,0.01444,69710.0,69707.0,0.01435]
[1771080341624,0.0144,69710.0,69708.0,0.01435]
[1771080341925,0.0144,69710.0,69709.0,0.01435]
[1771080342122,0.0144,69711.0,69709.0,0.01435]
[1771080342318,0.14356,69716.0,69709.0,0.01435]
[1771080342521,0.0144,69715.0,69709.0,0.01435]
[1771080343116,0.14356,69716.0,69709.0,0.01435]
[1771080343117,0.014348,69718.0,69709.0,0.01435]
[1771080343317,0.15796,69717.0,69709.0,0.01435]
[1771080343516,0.014348,69718.0,69709.0,0.01435]
[1771080343721,0.0144,69716.0,69709.0,0.01435]
[1771080344026,0.0144,69716.0,69708.0,0.01435]
[1771080344532,0.23881584,69714.0,69703.0,0.0144]
[1771080344717,0.25316484,69711.0,69703.0,0.0144]
[1771080345029,0.0144,69713.0,69704.0,0.014351]
[1771080345224,0.0144,69713.0,69706.0,0.01435]
[1771080345724,0.0144,69713.0,69707.0,0.01435]
[1771080345924,0.014349,69716.0,69707.0,0.01435]
[1771080346227,0.172309,69715.0,69706.0,0.01435]
[1771080346429,0.172309,69715.0,69705.0,0.014351]
[1771080347230,0.014349,69713.0,69704.0,0.014351]
[1771080347430,0.0144,69712.0,69704.0,0.014351]
[1771080347731,0.00677684,69712.0,69704.0,0.014351]
[1771080348625,0.00677684,69712.0,69705.0,0.014351]
[1771080349530,0.25994168,69712.0,69703.0,0.014351]
[1771080349731,0.25994168,69712.0,69701.0,0.028751]
[1771080349732,0.25316484,69711.0,69701.0,0.028751]
[1771080349931,0.01435,69710.0,69701.0,0.028751]
[1771080350132,0.02875,69709.0,69701.0,0.0144]
[1771080350335,0.014352,69699.0,69692.0,0.0144]
[1771080350633,0.028704,69699.0,69692.0,0.0144]
[1771080350833,0.014352,69698.0,69692.0,0.0144]
[1771080351734,0.014352,69699.0,69692.0,0.0144]
[1771080351936,0.014352,69700.0,69692.0,0.0144]
[1771080352633,0.014292,69700.0,69692.0,0.0144]
[1771080353028,0.028752,69701.0,69692.0,0.0144]
[1771080353429,0.028752,69701.0,69691.0,0.028753]
[1771080353736,0.0144,69701.0,69693.0,0.014353]
[1771080354130,0.0144,69701.0,69694.0,0.014353]
[1771080354938,0.25316684,69703.0,69694.0,0.014353]
[1771080355137,0.0144,69702.0,69694.0,0.014353]
[1771080356840,0.0144,69702.0,69691.0,0.028753]
[1771080357138,0.028751,69702.0,69692.0,0.014353]
[1771080357540,0.028751,69702.0,69693.0,0.014353]
[1771080357736,0.0144,69702.0,69693.0,0.014353]
[1771080358042,0.028751,69702.0,69692.0,0.014353]
[1771080358541,0.028751,69702.0,69692.0,0.028706]
[1771080359238,0.028751,69702.0,69693.0,0.014353]
[1771080363037,0.26528372,69702.0,69693.0,0.014353]
[1771080363235,0.014352,69701.0,69692.0,0.014353]
[1771080363434,0.25093272,69702.0,69692.0,0.014353]
[1771080363637,0.26528372,69702.0,69692.0,0.014353]
[1771080363837,0.014352,69701.0,69691.0,0.014353]
[1771080364034,0.014352,69701.0,69692.0,0.014353]
[1771080364242,0.26528372,69702.0,69692.0,0.014353]
[1771080364545,0.25088372,69702.0,69692.0,0.014353]
[1771080364740,0.0144,69701.0,69693.0,0.014353]
[1771080365143,0.0144,69700.0,69693.0,0.014353]
[1771080366242,0.014351,69702.0,69693.0,0.014353]
[1771080366441,0.028752,69701.0,69692.0,0.014353]
[1771080366642,0.26528472,69701.0,69692.0,0.014353]
[1771080367344,0.26528472,69701.0,69692.0,0.028706]
[1771080367747,0.26528472,69701.0,69692.0,0.014353]
[1771080368546,0.26528472,69701.0,69694.0,0.014353]
[1771080368547,0.0144,69701.0,69694.0,0.014353]
[1771080368750,0.0144,69701.0,69693.0,0.014353]
[1771080369249,0.028752,69701.0,69693.0,0.014353]
[1771080370351,0.028752,69701.0,69692.0,0.014353]
[1771080370552,0.0144,69701.0,69693.0,0.014353]
[1771080370747,0.0144,69701.0,69696.0,0.014352]
[1771080371144,0.014351,69703.0,69695.0,0.014353]
[1771080371343,0.0144,69702.0,69695.0,0.014353]
[1771080373049,0.0144,69702.0,69690.0,0.0144]
[1771080373050,0.014352,69698.0,69690.0,0.0144]
[1771080373252,0.028752,69698.0,69690.0,0.0144]
[1771080373552,0.0144,69698.0,69690.0,0.014354]
[1771080373752,0.0144,69698.0,69690.0,0.028754]
[1771080373942,0.028752,69698.0,69690.0,0.028754]
[1771080374443,0.0144,69698.0,69691.0,0.014353]
[1771080375052,0.0144,69698.0,69692.0,0.014353]
[1771080375452,0.0144,69698.0,69695.0,0.014353]
[1771080375753,0.0144,69698.0,69694.0,0.014353]
[1771080375951,0.0144,69699.0,69695.0,0.014353]
[1771080376151,0.0144,69699.0,69694.0,0.014353]
[1771080377049,0.0144,69699.0,69686.0,0.24855163]
[1771080377050,0.14356,69719.0,69710.0,0.01435]
[1771080377244,0.028748,69718.0,69709.0,0.01435]
[1771080378852,0.043096,69718.0,69708.0,0.01435]
[1771080379248,0.028748,69718.0,69709.0,0.01435]
[1771080379851,0.0144,69718.0,69709.0,0.01435]
[1771080380053,0.014347,69722.0,69712.0,0.014349]
[1771080380253,0.014347,69722.0,69713.0,0.014349]
[1771080380254,0.0144,69721.0,69713.0,0.014349]
[1771080380458,0.0144,69720.0,69713.0,0.014349]
[1771080381452,0.0144,69720.0,69714.0,0.014349]
[1771080381656,0.0144,69720.0,69710.0,0.0144]
[1771080381657,0.0144,69720.0,69711.0,0.014349]
[1771080382154,0.0144,69720.0,69713.0,0.014349]
[1771080382556,0.0144,69720.0,69714.0,0.014349]
[1771080383352,0.0144,69720.0,69713.0,0.014349]
[1771080383556,0.0144,69720.0,69710.0,0.0144]
[1771080383557,0.25088072,69718.0,69710.0,0.0144]
[1771080383860,0.028748,69717.0,69708.0,0.02875]
[1771080384158,0.0144,69717.0,69710.0,0.01435]
[1771080384350,0.0144,69717.0,69711.0,0.014349]
[1771080385154,0.014349,69713.0,69702.0,0.0144]
[1771080385461,0.028749,69712.0,69703.0,0.014351]
[1771080385760,0.043098,69712.0,69703.0,0.014351]
[1771080386163,0.028749,69712.0,69703.0,0.028702]
[1771080386358,0.01435,69710.0,69702.0,0.0144]
[1771080386660,0.01435,69707.0,69701.0,0.0144]
[1771080387157,0.25093272,69709.0,69701.0,0.0144]
[1771080387158,0.014351,69706.0,69701.0,0.0144]
[1771080387463,0.0144,69706.0,69699.0,0.014352]
[1771080388055,0.028751,69706.0,69698.0,0.014352]
[1771080388661,0.0144,69706.0,69699.0,0.014352]
[1771080389161,0.0144,69706.0,69701.0,0.014351]
[1771080389462,0.0144,69707.0,69703.0,0.014351]
[1771080389857,0.0144,69707.0,69705.0,0.014351]
[1771080390557,0.014349,69714.0,69708.0,0.01435]
[1771080390558,0.0144,69709.0,69708.0,0.01435]
[1771080390762,0.014348,69716.0,69708.0,0.01435]
[1771080391064,0.0144,69715.0,69709.0,0.01435]
[1771080392259,0.0144,69714.0,69709.0,0.01435]
[1771080392556,0.014348,69717.0,69709.0,0.01435]
[1771080392757,0.0144,69716.0,69709.0,0.01435]
[1771080392958,0.028748,69716.0,69708.0,0.01435]
[1771080393154,0.14356,69717.0,69709.0,0.01435]
[1771080393356,0.14356,69717.0,69712.0,0.014349]
[1771080394062,0.14356,69717.0,69711.0,0.014349]
[1771080394363,0.01435,69710.0,69704.0,0.0144]
[1771080394665,0.0287,69708.0,69704.0,0.0144]
[1771080394962,0.014351,69703.0,69698.0,0.0144]
[1771080395162,0.014351,69705.0,69698.0,0.0144]
[1771080395463,0.0144,69706.0,69699.0,0.014352]
[1771080396366,0.0144,69706.0,69698.0,0.0144]
[1771080396560,0.028751,69706.0,69698.0,0.0144]
[1771080397058,0.014351,69705.0,69696.0,0.014353]
[1771080397460,0.014352,69701.0,69695.0,0.0144]
[1771080397663,0.014352,69700.0,69692.0,0.0144]
[1771080397866,0.014352,69699.0,69692.0,0.0144]
[1771080398260,0.028752,69699.0,69692.0,0.0144]
[1771080400767,0.028752,69699.0,69691.0,0.014354]
[1771080401265,0.014353,69694.0,69684.0,0.014355]
[1771080401467,0.014353,69695.0,69686.0,0.014355]
[1771080401468,0.028753,69693.0,69686.0,0.014355]
[1771080401862,0.043106,69693.0,69686.0,0.014355]
[1771080402068,0.014353,69692.0,69686.0,0.014355]
[1771080402264,0.028753,69693.0,69686.0,0.014355]
[1771080402465,0.043106,69693.0,69686.0,0.014355]
[1771080402660,0.028753,69693.0,69686.0,0.014355]
[1771080402959,0.028753,69693.0,69688.0,0.014354]
[1771080402960,0.0144,69693.0,69688.0,0.014354]
[1771080405970,0.028753,69693.0,69688.0,0.014354]
[1771080406158,0.0144,69693.0,69688.0,0.014354]
[1771080406664,0.0144,69693.0,69689.0,0.014354]
[1771080407166,0.0144,69693.0,69684.0,0.0144]
[1771080407470,1e-06,69693.0,69691.0,0.014353]
[1771080408268,1e-06,69693.0,69692.0,0.014353]
[1771080409169,1e-06,69693.0,69691.0,0.014354]
[1771080409368,1e-06,69693.0,69690.0,0.014354]
[1771080409562,1e-06,69693.0,69689.0,0.014354]
[1771080409766,1e-06,69693.0,69688.0,0.014354]
[1771080410567,1e-06,69693.0,69683.0,0.014355]
[1771080410568,0.014355,69686.0,69683.0,0.0144]
[1771080410868,0.014354,69687.0,69680.0,0.028756]
[1771080411068,0.014354,69687.0,69680.0,0.014356]
[1771080412167,0.0144,69689.0,69663.0,0.53150228]
[1771080412168,0.23311306,69682.0,69668.0,0.014358]
[1771080412368,0.014357,69677.0,69670.0,0.014358]
[1771080412667,0.014357,69675.0,69670.0,0.014358]
[1771080413173,0.014357,69675.0,69668.0,0.028758]
[1771080413467,0.014357,69675.0,69670.0,0.014358]
[1771080414073,0.014357,69675.0,69669.0,0.014358]
[1771080414468,0.014357,69673.0,69666.0,0.014359]
[1771080414767,0.014357,69673.0,69667.0,0.014358]
[1771080415162,0.014357,69673.0,69668.0,0.014358]
[1771080415368,0.014357,69674.0,69669.0,0.014358]
[1771080415573,0.0144,69673.0,69669.0,0.014358]
[1771080415778,0.014357,69674.0,69669.0,0.014358]
[1771080415975,0.0144,69673.0,69669.0,0.014358]
[1771080416678,0.014357,69673.0,69668.0,0.014358]
[1771080416877,0.014357,69674.0,69668.0,0.028716]
[1771080417170,0.14356,69682.0,69670.0,0.014358]
[1771080417374,0.14356,69682.0,69672.0,0.014357]
[1771080417375,0.014356,69678.0,69672.0,0.014357]
[1771080417677,0.0144,69677.0,69673.0,0.014357]
[1771080418176,0.014356,69680.0,69674.0,0.014357]
[1771080418377,0.0144,69679.0,69673.0,0.014357]
[1771080418570,0.014356,69678.0,69673.0,0.014357]
[1771080418770,0.0144,69677.0,69673.0,0.014357]
[1771080419075,0.0144,69677.0,69672.0,0.014357]
[1771080419267,0.0144,69677.0,69671.0,0.014358]
[1771080419467,0.014357,69676.0,69670.0,0.014358]
[1771080419766,0.23311306,69699.0,69671.0,0.23365532]
[1771080419970,0.0144,69685.0,69683.0,0.014355]
[1771080420175,0.0144,69685.0,69678.0,0.014356]
[1771080420464,0.0144,69685.0,69682.0,0.014355]
[1771080420674,0.1436,69690.0,69687.0,0.014354]
[1771080420874,0.0144,69689.0,69688.0,0.014354]
[1771080421471,0.014353,69694.0,69687.0,0.014354]
[1771080421677,0.0144,69693.0,69686.0,0.014355]
[1771080421971,0.014353,69692.0,69684.0,0.014355]
[1771080422175,0.014354,69691.0,69684.0,0.014355]
[1771080423181,0.028753,69693.0,69686.0,0.014355]
[1771080423374,0.014354,69692.0,69684.0,0.014355]
[1771080423576,0.014354,69691.0,69684.0,0.014355]
[1771080423776,0.014354,69691.0,69680.0,0.0144]
[1771080423971,0.014356,69681.0,69674.0,0.014357]
[1771080424175,0.014355,69682.0,69675.0,0.028757]
[1771080424473,0.014356,69681.0,69675.0,0.0144]
[1771080425382,0.014356,69681.0,69674.0,0.014357]
[1771080425683,0.014356,69680.0,69674.0,0.014357]
[1771080425874,0.014356,69681.0,69674.0,0.014357]
[1771080427073,0.014356,69678.0,69670.0,0.014358]
[1771080427878,0.014356,69678.0,69671.0,0.014358]
[1771080428972,0.014356,69677.0,69670.0,0.014358]
[1771080429173,0.0144,69676.0,69670.0,0.014358]
[1771080429582,0.028757,69676.0,69669.0,0.014358]
[1771080430474,0.014357,69675.0,69669.0,0.014358]
[1771080430880,0.014357,69675.0,69670.0,0.014358]
[1771080431782,0.028757,69676.0,69670.0,0.014358]
[1771080432081,0.014358,69672.0,69667.0,0.0144]
[1771080432280,0.014358,69672.0,69666.0,0.028759]
[1771080432482,0.014358,69672.0,69667.0,0.014358]
[1771080432778,0.014357,69673.0,69668.0,0.014358]
[1771080434185,0.028757,69676.0,69669.0,0.014358]
[1771080434383,0.014355,69684.0,69679.0,0.014356]
[1771080434683,0.014355,69686.0,69670.0,0.014358]
[1771080434684,0.1436,69680.0,69676.0,0.014357]
[1771080434875,0.0144,69679.0,69676.0,0.014357]
[1771080435071,0.014356,69681.0,69675.0,0.014357]
[1771080435286,0.0144,69680.0,69676.0,0.014357]
[1771080435593,0.014358,69671.0,69665.0,0.014359]
[1771080435882,0.014358,69669.0,69665.0,0.0144]
[1771080436472,0.0144,69668.0,69656.0,0.014361]
[1771080436677,0.014359,69663.0,69657.0,0.0144]
[1771080437183,0.014359,69663.0,69657.0,0.043121]
[1771080437376,0.014359,69663.0,69657.0,0.02876]
[1771080437777,0.014359,69664.0,69658.0,0.01436]
[1771080437977,0.028759,69667.0,69657.0,0.02876]
[1771080437978,0.0144,69667.0,69657.0,0.02876]
[1771080438283,0.0144,69667.0,69659.0,0.01436]
[1771080438687,0.028759,69667.0,69657.0,0.0144]
[1771080439082,0.014359,69666.0,69659.0,0.02872]
[1771080439277,0.028759,69667.0,69657.0,0.01436]
[1771080439484,0.014359,69665.0,69659.0,0.01436]
[1771080439683,0.0144,69664.0,69659.0,0.01436]
[1771080441193,0.028759,69664.0,69659.0,0.01436]
[1771080441492,0.014359,69663.0,69654.0,0.0144]
[1771080441789,0.014359,69663.0,69657.0,0.014361]
[1771080444189,0.014359,69664.0,69658.0,0.01436]
[1771080444391,0.0144,69663.0,69657.0,0.014361]
[1771080445381,0.01436,69662.0,69656.0,0.014361]
[1771080445793,0.01436,69661.0,69656.0,0.014361]
[1771080446688,0.01436,69660.0,69654.0,0.028761]
[1771080446885,0.014361,69658.0,69654.0,0.0144]
[1771080447090,0.014361,69657.0,69653.0,0.0144]
[1771080447490,0.014361,69657.0,69653.0,0.014361]
[1771080447691,0.01436,69658.0,69653.0,0.014361]
[1771080447890,0.01436,69658.0,69654.0,0.014361]
[1771080448096,0.028721,69658.0,69653.0,0.014361]
[1771080448596,0.01436,69658.0,69653.0,0.014361]
[1771080448795,0.014361,69657.0,69653.0,0.014361]
[1771080448996,0.01436,69658.0,69653.0,0.014361]
[1771080449789,0.028721,69658.0,69653.0,0.014361]
[1771080449990,0.01436,69658.0,69653.0,0.014361]
[1771080450197,0.028721,69658.0,69653.0,0.014361]
[1771080450397,0.01436,69658.0,69653.0,0.014361]
[1771080451599,0.028721,69658.0,69653.0,0.014361]
[1771080451996,0.01436,69658.0,69653.0,0.014361]
[1771080452696,0.0144,69659.0,69646.0,0.37674427]
[1771080452697,0.014362,69652.0,69646.0,0.14364]
[1771080452894,0.014361,69655.0,69650.0,0.014362]
[1771080453094,0.014361,69653.0,69649.0,0.014362]
[1771080453894,0.014362,69652.0,69648.0,0.014362]
[1771080454099,0.014361,69653.0,69634.0,0.2255792]
[1771080454402,0.014361,69653.0,69641.0,0.2255792]
[1771080454403,0.028762,69653.0,69641.0,0.2255792]
[1771080454598,0.01436,69658.0,69653.0,0.014361]
[1771080454790,0.0144,69657.0,69653.0,0.014361]
[1771080454996,0.0144,69659.0,69655.0,0.014361]
[1771080455292,0.014361,69656.0,69651.0,0.0144]
[1771080455700,0.014361,69656.0,69651.0,0.028762]
[1771080455901,0.014361,69657.0,69651.0,0.028762]
[1771080456103,0.014361,69655.0,69651.0,0.0144]
[1771080456298,0.014361,69656.0,69650.0,0.014362]
[1771080456598,0.014361,69656.0,69651.0,0.014362]
[1771080457800,0.01119848,69656.0,69651.0,0.014362]
[1771080458395,0.01119848,69656.0,69650.0,0.014362]
[1771080458798,0.014361,69655.0,69650.0,0.014362]
[1771080459192,0.01119848,69656.0,69650.0,0.014362]
[1771080459805,0.028761,69657.0,69651.0,0.014362]
[1771080460005,0.028761,69657.0,69649.0,0.0144]
[1771080460006,0.0144,69657.0,69655.0,0.014361]
[1771080460594,0.0144,69657.0,69649.0,0.2399792]
[1771080460595,0.014361,69656.0,69650.0,0.014362]
[1771080461109,0.014361,69656.0,69651.0,0.014362]
[1771080461411,0.014361,69656.0,69650.0,0.014362]
[1771080462010,0.014361,69655.0,69649.0,0.028762]
[1771080463913,0.014363,69647.0,69637.0,0.01451273]
[1771080464209,0.014363,69647.0,69641.0,0.014364]
[1771080464407,0.014363,69647.0,69642.0,0.0144]
[1771080464608,0.0144,69653.0,69646.0,0.014363]
[1771080464804,0.014361,69656.0,69646.0,0.014363]
[1771080464805,0.014361,69655.0,69649.0,0.014362]
[1771080465103,0.028761,69654.0,69646.0,0.22868725]
[1771080465308,0.014361,69653.0,69647.0,0.014363]
[1771080466104,0.014362,69652.0,69647.0,0.014363]
[1771080467011,0.014361,69653.0,69648.0,0.014362]
[1771080467807,0.014362,69652.0,69647.0,0.014363]
[1771080468005,0.028724,69652.0,69645.0,0.0144]
[1771080468206,0.014362,69650.0,69645.0,0.0144]
[1771080468410,0.014361,69657.0,69646.0,0.014363]
[1771080468615,0.014361,69657.0,69651.0,0.014362]
[1771080469115,0.0144,69656.0,69651.0,0.014362]
[1771080469614,0.0144,69656.0,69654.0,0.014361]
[1771080470514,0.014358,69668.0,69657.0,0.01436]
[1771080470715,0.01436,69662.0,69656.0,0.014361]
[1771080471014,0.02876,69661.0,69655.0,0.014361]
[1771080471213,0.02876,69661.0,69653.0,0.014361]
[1771080471408,0.014361,69657.0,69651.0,0.014362]
[1771080472211,0.0144,69658.0,69651.0,0.014362]
[1771080472907,0.0144,69658.0,69653.0,0.014361]
[1771080474111,0.014363,69644.0,69637.0,0.53165001]
[1771080474319,0.014364,69643.0,69637.0,0.00014773]
[1771080474716,0.014364,69642.0,69637.0,0.00014773]
[1771080475320,0.014364,69640.0,69637.0,0.01454773]
[1771080476514,0.014364,69640.0,69637.0,0.00014773]
[1771080476818,0.0144,69646.0,69638.0,0.22868725]
[1771080477022,0.0144,69646.0,69644.0,0.014363]
[1771080477424,0.028762,69649.0,69644.0,0.014363]
[1771080478116,0.028762,69649.0,69642.0,0.028728]
[1771080478312,0.028762,69649.0,69643.0,0.014363]
[1771080479017,0.014362,69649.0,69643.0,0.014363]
[1771080479619,0.158041,69655.0,69647.0,0.014363]
[1771080479824,0.0144,69654.0,69649.0,0.014362]
[1771080480418,0.014361,69658.0,69641.0,0.22868725]
[1771080480623,0.014361,69657.0,69651.0,0.014362]
[1771080480819,0.014361,69655.0,69649.0,0.0144]
[1771080481126,0.014361,69656.0,69649.0,0.028762]
[1771080481325,0.014361,69655.0,69649.0,0.028762]
[1771080481729,0.014361,69655.0,69648.0,0.014362]
[1771080481730,0.0144,69658.0,69648.0,0.0144]
[1771080481928,0.014362,69650.0,69648.0,0.0144]
[1771080482320,0.028724,69650.0,69648.0,0.0144]
[1771080482522,0.014362,69649.0,69648.0,0.0144]
[1771080482824,0.014364,69643.0,69638.0,0.0144]
[1771080483320,0.0144,69650.0,69638.0,0.0144]
[1771080483526,0.014363,69647.0,69642.0,0.014364]
[1771080483728,0.014363,69647.0,69638.0,0.0144]
[1771080483729,0.014363,69647.0,69641.0,0.043128]
[1771080484024,0.014363,69644.0,69641.0,0.0144]
[1771080484632,0.014363,69644.0,69640.0,0.0144]
[1771080484927,0.014363,69647.0,69640.0,0.0144]
[1771080485326,0.014363,69644.0,69640.0,0.0144]
[1771080485523,0.028726,69644.0,69640.0,0.0144]
[1771080485724,0.028726,69644.0,69638.0,0.014364]
[1771080485925,0.014363,69644.0,69640.0,0.0144]
[1771080486426,0.014363,69643.0,69640.0,0.0144]
[1771080488325,0.014364,69641.0,69640.0,0.0144]
[1771080488526,0.014364,69642.0,69640.0,0.0144]